bitfinex/quotes_SOLUSD_20240727
["timestamp","ask_amount","ask_price","bid_price","bid_amount"]
[1722119870923,4.2747,187.15,187.09,6.2792]
[1722119872413,16.6942,187.15,187.02,1.06885921]
[1722119872618,16.6942,187.15,186.98,16.2592]
[1722119872619,25.13,187.07,186.98,16.2592]
[1722119872828,4.2778,187.01,186.98,16.2592]
[1722119873029,4.278,187.0,186.98,16.2592]
[1722119873239,4.2783,186.99,186.98,16.2592]
[1722119873731,4.2786,186.98,186.93,16.2592]
[1722119876129,4.2783,186.99,186.93,16.2592]
[1722119878426,16.896,187.08,186.93,16.2592]
[1722119878631,12.87839709,187.08,186.94,20.0]
[1722119878845,10.691,187.08,186.95,1.0694794]
[1722119879041,10.691,187.08,186.96,1.06946142]
[1722119879223,4.2769,187.05,186.96,1.06946142]
[1722119879423,4.2767,187.06,186.96,1.06946142]
[1722119879635,4.2767,187.06,186.94,20.0]
[1722119879636,4.2767,187.06,186.94,21.06944349]
[1722119879821,16.09,187.19,186.96,6.423]
[1722119879822,4.276,187.09,186.96,6.423]
[1722119880023,4.2762,187.08,186.98,16.2592]
[1722119880342,4.2762,187.08,186.99,20.0]
[1722119881260,20.0,187.12,186.99,20.0]
[1722119881555,4.2766,187.07,186.98,16.2592]
[1722119883248,4.2768,187.06,186.98,16.2592]
[1722119884939,4.2769,187.05,186.98,16.2592]
[1722119886327,4.2767,187.07,186.98,16.2592]
[1722119886540,20.0,187.09,186.98,16.2592]
[1722119886741,20.0,187.09,186.99,21.06926751]
[1722119886937,24.2762,187.09,186.99,21.06926751]
[1722119887149,4.2762,187.08,186.99,20.0]
[1722119887734,4.2767,187.06,186.99,20.0]
[1722119888535,4.2765,187.07,186.99,20.0]
[1722119888849,4.2767,187.06,186.99,20.0]
[1722119889438,4.2769,187.05,186.98,16.2592]
[1722119890246,4.2767,187.06,186.98,16.2592]
[1722119891034,4.2769,187.05,186.98,16.2592]
[1722119891435,4.2772,187.04,186.98,16.2592]
[1722119891839,30.6901,187.09,186.99,1.06942182]
[1722119892041,4.2766,187.07,186.99,1.06942182]
[1722119892660,4.2766,187.07,186.98,16.2592]
[1722119892962,4.2767,187.06,186.98,16.2592]
[1722119894053,4.2769,187.05,186.98,16.2592]
[1722119894433,45.0,187.08,186.98,16.2592]
[1722119894639,4.2771,187.04,186.98,16.2592]
[1722119898552,4.2769,187.06,186.98,16.2592]
[1722119898757,20.17,187.07,186.98,16.2592]
[1722119898758,20.0,187.07,186.98,16.2592]
[1722119899157,20.0,187.12,186.98,17.32846615]
[1722119899334,20.0,187.12,186.98,16.2592]
[1722119899649,4.2766,187.07,186.98,16.2592]
[1722119899850,4.2767,187.06,186.98,16.2592]
[1722119902056,4.2769,187.05,186.98,16.2592]
[1722119903353,4.2772,187.04,186.98,16.2592]
[1722119904236,4.2769,187.05,186.98,16.2592]
[1722119905055,4.276,187.09,186.99,1.06934661]
[1722119905259,4.276,187.09,186.99,21.06934661]
[1722119905556,4.2762,187.08,186.99,21.06934661]
[1722119907038,4.2759,187.1,187.0,22.7905]
[1722119907238,20.0,187.12,187.01,1.06906152]
[1722119907239,4.276,187.09,187.01,1.06906152]
[1722119907652,4.276,187.09,187.0,22.7905]
[1722119908053,4.276,187.09,187.01,1.06908906]
[1722119908439,4.2758,187.1,187.01,1.06908906]
[1722119908842,35.8171,187.15,187.02,1.23907207]
[1722119909042,35.8171,187.15,187.03,16.4534]
[1722119909256,35.8171,187.15,187.04,1.06892709]
[1722119909566,35.8171,187.15,187.05,1.06893604]
[1722119909757,35.8171,187.15,187.03,17.5223399]
[1722119910147,4.2755,187.11,187.03,17.5223399]
[1722119912667,4.2755,187.11,187.04,20.0]
[1722119914874,4.2753,187.12,187.04,20.0]
[1722119916148,4.2755,187.11,187.04,20.0]
[1722119916448,4.2755,187.11,187.03,17.5223399]
[1722119916752,4.2755,187.11,187.04,20.0]
[1722119917543,4.2753,187.12,187.04,20.0]
[1722119920355,45.0,187.14,187.04,20.0]
[1722119920356,4.2762,187.09,187.04,20.0]
[1722119920753,45.0,187.14,187.04,20.0]
[1722119921061,45.0,187.14,187.05,1.06899629]
[1722119921363,4.2755,187.12,187.05,1.06899629]
[1722119921666,4.2756,187.11,187.05,1.06899629]
[1722119922749,4.2756,187.11,187.04,20.0]
[1722119922948,4.2753,187.12,187.04,20.0]
[1722119923356,45.0,187.14,187.04,20.0]
[1722119923357,4.2755,187.11,187.04,20.0]
[1722119924848,4.2758,187.1,187.04,20.0]
[1722119927371,4.2755,187.11,187.04,20.0]
[1722119929258,49.275,187.14,187.05,1.06911523]
[1722119930858,4.2751,187.13,187.05,1.06911523]
[1722119932754,4.2753,187.12,187.05,1.06911523]
[1722119933757,45.0,187.14,187.04,20.0]
[1722119933758,4.2756,187.11,187.04,20.0]
[1722119934163,20.0,187.13,187.03,16.4534]
[1722119934365,45.0,187.12,187.03,16.4534]
[1722119934688,4.2758,187.1,187.03,16.4534]
[1722119935777,4.276,187.09,187.03,16.4534]
[1722119936590,4.2756,187.11,187.03,16.4534]
[1722119936888,20.0,187.13,187.03,16.4534]
[1722119937068,4.2753,187.13,187.03,16.4534]
[1722119937383,4.2753,187.12,187.03,16.4534]
[1722119937795,45.0,187.11,187.03,16.4534]
[1722119938265,20.34,187.1,187.03,16.4534]
[1722119938463,45.0,187.09,187.03,16.4534]
[1722119938671,4.2766,187.07,187.03,16.4534]
[1722119940989,45.0,187.09,187.03,16.4534]
[1722119940990,4.2767,187.06,187.03,16.4534]
[1722119941569,4.277,187.05,187.03,16.4534]
[1722119941882,4.2774,187.03,186.96,15.2299]
[1722119942071,20.17,187.08,186.96,15.2299]
[1722119942270,45.17,187.07,186.96,15.2299]
[1722119942496,4.2771,187.04,186.96,15.2299]
[1722119942802,20.17,187.06,186.96,15.2299]
[1722119942803,24.4468,187.06,186.96,15.2299]
[1722119942972,24.2768,187.06,186.96,15.2299]
[1722119943169,45.0,187.05,186.96,16.29938767]
[1722119943576,49.277,187.05,186.96,16.29938767]
[1722119944388,4.2762,187.08,186.97,21.5551]
[1722119944605,45.0,187.07,186.98,36.29925586]
[1722119944810,45.0,187.07,186.99,1.06934524]
[1722119945106,25.13,187.12,187.0,15.2299]
[1722119945107,4.276,187.09,187.0,15.2299]
[1722119945615,4.2762,187.08,187.0,15.2299]
[1722119948111,4.276,187.09,187.0,15.2299]
[1722119949515,20.0,187.11,187.0,15.2299]
[1722119949516,45.0,187.08,187.0,15.2299]
[1722119950188,4.2767,187.06,187.0,15.2299]
[1722119950508,4.2776,187.02,187.0,15.2299]
[1722119950904,4.2778,187.01,187.0,15.2299]
[1722119951207,4.2781,187.0,186.97,6.3252]
[1722119951386,10.6923,187.05,186.95,15.2299]
[1722119951387,4.2787,186.98,186.95,15.2299]
[1722119951593,45.0,186.99,186.95,15.2299]
[1722119951594,4.2788,186.97,186.95,15.2299]
[1722119953289,24.2785,186.98,186.95,15.2299]
[1722119954511,4.2787,186.97,186.95,15.2299]
[1722119956511,45.0,186.99,186.95,15.2299]
[1722119958100,4.2787,186.97,186.95,15.2299]
[1722119958309,4.2789,186.96,186.95,15.2299]
[1722119958822,4.2789,186.96,186.92,15.0284]
[1722119960131,4.2787,186.97,186.92,15.0284]
[1722119960316,45.0,186.96,186.92,15.0284]
[1722119961910,49.279,186.96,186.92,15.0284]
[1722119964515,4.2792,186.95,186.92,15.0284]
[1722119966427,49.279,186.96,186.92,15.0284]
[1722119968017,4.2792,186.95,186.92,15.0284]
[1722119970344,4.2785,186.98,186.92,15.0284]
[1722119970644,4.2784,186.99,186.92,15.0284]
[1722119971231,4.2785,186.98,186.92,15.0284]
[1722119972042,4.2783,186.99,186.92,15.0284]
[1722119973343,21.378,187.11,186.95,16.0406]
[1722119973641,25.13,187.09,186.96,1.06949517]
[1722119973939,4.2772,187.04,186.95,17.11003221]
[1722119974123,4.2769,187.05,186.95,17.11003221]
[1722119974540,4.2771,187.04,186.95,17.11003221]
[1722119975233,4.2771,187.04,186.96,1.06943199]
[1722119976647,4.2769,187.05,186.95,17.11003095]
[1722119976944,4.2769,187.05,186.96,1.06943107]
[1722119977245,4.2771,187.04,186.97,16.0406]
[1722119977748,4.277,187.05,186.98,1.06934872]
[1722119978040,4.277,187.05,186.97,16.0406]
[1722119978041,4.277,187.05,186.99,1.06934687]
[1722119978339,4.2763,187.08,186.98,20.0]
[1722119978532,10.6899,187.1,186.98,20.0]
[1722119978733,4.2767,187.06,186.98,20.0]
[1722119979335,4.2764,187.07,186.99,23.64263238]
[1722119979536,4.2762,187.08,186.99,23.64263238]
[1722119979929,10.6876,187.14,186.99,23.64263238]
[1722119979930,2.14977441,187.13,187.0,16.2106]
[1722119980130,4.2757,187.1,187.01,21.0690423]
[1722119980446,10.6876,187.14,187.0,16.0406]
[1722119980447,4.2762,187.08,187.0,16.0406]
[1722119982027,4.2765,187.07,187.0,16.0406]
[1722119982239,20.0,187.13,187.0,16.0406]
[1722119982240,4.2762,187.09,187.0,16.0406]
[1722119982434,20.0,187.13,187.0,16.0406]
[1722119982746,45.34,187.12,187.0,16.0406]
[1722119982948,45.13,187.11,187.0,16.0406]
[1722119983133,45.17,187.1,187.0,16.0406]
[1722119983538,4.2769,187.06,187.0,16.0406]
[1722119985742,4.2764,187.07,187.0,16.0406]
[1722119987632,4.2767,187.06,187.0,16.0406]
[1722119989054,20.0,187.09,187.0,16.0406]
[1722119989257,45.34,187.08,187.0,16.0406]
[1722119989763,4.2771,187.05,187.0,16.0406]
[1722119990935,24.2765,187.07,187.0,16.0406]
[1722119991132,24.2764,187.07,187.0,16.0406]
[1722119991954,4.2768,187.06,187.0,16.0406]
[1722119993358,4.2769,187.05,187.0,16.0406]
[1722119994936,4.2767,187.06,187.0,16.0406]
[1722119996060,4.2769,187.05,187.0,16.0406]
[1722119997246,4.2772,187.04,187.0,16.0406]
[1722119998434,4.2769,187.05,187.0,16.0406]
[1722119999285,4.2772,187.04,187.0,16.0406]
[1722119999961,4.2769,187.05,187.0,16.0406]
[1722120000686,4.2766,187.07,187.0,16.0406]
[1722120000988,4.2767,187.06,187.0,16.0406]
[1722120001852,4.2769,187.05,187.0,16.0406]
[1722120002054,45.0,187.08,187.0,16.0406]
[1722120002297,0.34,187.07,187.0,16.0406]
[1722120002855,4.2769,187.06,187.0,16.0406]
[1722120003053,45.0,187.05,187.0,16.0406]
[1722120003458,49.2769,187.05,187.0,16.0406]
[1722120005358,0.34,187.04,187.0,16.0406]
[1722120005771,4.2778,187.01,186.96,16.1512]
[1722120006364,4.2781,187.0,186.96,16.1512]
[1722120007377,4.2778,187.01,186.96,16.1512]
[1722120008478,4.2775,187.03,186.96,16.1512]
[1722120008672,45.0,187.02,186.96,16.1512]
[1722120009081,49.2776,187.02,186.96,16.1512]
[1722120009579,20.34,187.04,186.96,16.1512]
[1722120009791,6.1328,187.11,186.96,16.1512]
[1722120009978,45.34,187.1,186.97,1.06949903]
[1722120010187,4.2767,187.06,186.97,1.06949903]
[1722120011097,4.2767,187.06,186.96,16.1512]
[1722120011778,4.2765,187.07,186.97,17.22055176]
[1722120011962,4.2765,187.07,186.99,16.1512]
[1722120012163,4.2762,187.08,186.99,16.1512]
[1722120012362,27.29855488,187.11,186.99,16.1512]
[1722120012586,4.2767,187.06,186.99,16.1512]
[1722120013097,4.2769,187.05,186.99,16.1512]
[1722120013993,4.2771,187.04,186.99,16.1512]
[1722120016389,4.2769,187.05,186.99,16.1512]
[1722120017375,4.2772,187.04,186.99,16.1512]
[1722120019586,4.2774,187.03,186.99,16.1512]
[1722120020492,4.2771,187.05,187.0,1.06947982]
[1722120020699,4.2771,187.04,186.99,16.1512]
[1722120023504,5.98583717,187.11,187.0,6.4115]
[1722120023802,4.2757,187.1,187.01,15.0089]
[1722120024095,25.13,187.15,187.03,15.0089]
[1722120024096,4.2755,187.11,187.03,15.0089]
[1722120025189,27.27157219,187.15,187.03,15.0089]
[1722120025500,4.2758,187.1,187.03,15.0089]
[1722120026274,30.6872,187.14,187.03,15.0089]
[1722120026475,25.13,187.12,187.03,15.0089]
[1722120026779,45.34,187.11,187.03,15.0089]
[1722120027096,4.2762,187.08,187.03,15.0089]
[1722120028913,4.276,187.09,187.03,15.0089]
[1722120031307,45.0,187.08,187.03,15.0089]
[1722120031505,45.0,187.11,187.03,15.0089]
[1722120031905,4.2766,187.07,187.03,15.0089]
[1722120034221,4.2762,187.08,187.03,15.0089]
[1722120035305,4.2765,187.07,187.03,15.0089]
[1722120035502,25.13,187.06,186.97,6.6013]
[1722120035702,4.2774,187.03,186.97,6.6013]
[1722120036226,4.277,187.05,186.97,6.6013]
[1722120036422,4.2767,187.07,186.98,1.06946776]
[1722120036620,4.2768,187.06,186.98,1.06946776]
[1722120036807,4.2768,187.06,186.97,6.6013]
[1722120037005,25.13,187.09,186.98,15.791]
[1722120037006,4.2764,187.07,186.98,15.791]
[1722120037323,4.2762,187.08,186.98,15.791]
[1722120037700,4.2759,187.1,186.98,15.791]
[1722120037920,4.2759,187.1,187.0,15.791]
[1722120038628,4.276,187.09,187.0,15.791]
[1722120040407,4.2757,187.11,187.0,15.791]
[1722120040608,45.0,187.1,187.0,15.791]
[1722120040831,4.276,187.09,187.01,1.06915297]
[1722120040998,45.0,187.11,187.0,15.791]
[1722120040999,4.2762,187.08,187.0,15.791]
[1722120042020,4.276,187.09,187.0,15.791]
[1722120042329,4.276,187.09,187.0,16.86015571]
[1722120042626,45.0,187.11,187.0,16.86015571]
[1722120042831,25.13,187.12,187.02,15.791]
[1722120043127,31.06528162,187.15,187.02,15.791]
[1722120043313,4.2755,187.11,187.02,15.791]
[1722120046130,4.2758,187.1,187.02,15.791]
[1722120046434,4.2755,187.11,187.02,15.791]
[1722120046621,4.2757,187.1,187.03,1.06906143]
[1722120046817,4.2757,187.1,187.02,15.791]
[1722120047608,31.06528162,187.15,187.02,16.86011296]
[1722120047809,4.2755,187.11,187.02,16.86011296]
[1722120048438,4.2753,187.12,187.02,16.86011296]
[1722120048732,4.2753,187.12,187.02,15.791]
[1722120049138,4.2756,187.11,187.02,15.791]
[1722120051531,4.2758,187.1,187.02,15.791]
[1722120053144,4.2765,187.07,187.02,15.791]
[1722120053519,25.13,187.12,187.02,15.791]
[1722120053843,4.276,187.09,187.02,15.791]
[1722120054532,45.0,187.11,187.02,15.791]
[1722120054533,4.2765,187.07,187.02,15.791]
[1722120054883,4.2762,187.08,187.02,15.791]
[1722120055416,4.276,187.09,187.02,15.791]
[1722120056134,4.2762,187.08,187.02,15.791]
[1722120059550,45.0,187.11,187.02,15.791]
[1722120059749,4.2769,187.06,187.02,15.791]
[1722120060047,4.2769,187.05,187.02,15.791]
[1722120060447,0.34,187.1,187.02,15.791]
[1722120060645,25.13,187.09,187.02,15.791]
[1722120060869,45.0,187.08,187.02,15.791]
[1722120061455,0.34,187.07,187.02,15.791]
[1722120062232,4.2771,187.04,187.02,15.791]
[1722120063838,4.2769,187.05,187.02,15.791]
[1722120064047,25.13,187.12,187.02,15.791]
[1722120064934,4.2764,187.08,187.02,15.791]
[1722120065469,4.276,187.09,187.02,15.791]
[1722120067833,27.29494292,187.12,187.02,15.791]
[1722120068056,45.34,187.11,187.02,15.791]
[1722120068434,4.2766,187.07,187.02,15.791]
[1722120069962,45.0,187.11,187.03,6.26]
[1722120070260,4.2758,187.1,187.03,6.26]
[1722120071547,49.2755,187.11,187.03,6.26]
[1722120074970,4.2758,187.1,187.03,6.26]
[1722120075264,49.2755,187.11,187.03,6.26]
[1722120075681,6.044,187.18,187.06,16.5164]
[1722120075682,4.2744,187.16,187.06,16.5164]
[1722120075855,2.13590496,187.18,187.06,16.5164]
[1722120076165,10.0,187.2,187.06,16.5164]
[1722120076355,4.2747,187.15,187.06,16.5164]
[1722120076970,4.2747,187.15,187.07,1.06883548]
[1722120077164,4.2747,187.15,187.08,17.58522274]
[1722120077465,10.0,187.2,187.08,16.5164]
[1722120077771,12.15711897,187.2,187.08,16.5164]
[1722120078065,12.15711897,187.2,187.1,16.5164]
[1722120078869,4.2742,187.17,187.1,16.5164]
[1722120080270,12.15711897,187.2,187.1,16.5164]
[1722120080459,4.2746,187.15,187.1,16.5164]
[1722120080766,4.2744,187.16,187.1,16.5164]
[1722120081573,45.0,187.19,187.1,16.5164]
[1722120082974,49.2739,187.19,187.1,16.5164]
[1722120083159,4.274,187.18,187.1,16.5164]
[1722120083477,45.0,187.19,187.1,16.5164]
[1722120083661,10.0,187.2,187.1,16.5164]
[1722120083975,4.2737,187.19,187.1,16.5164]
[1722120084952,4.274,187.18,187.1,16.5164]
[1722120086872,4.2742,187.17,187.1,16.5164]
[1722120087053,10.0,187.2,187.1,16.5164]
[1722120087054,4.2744,187.16,187.1,16.5164]
[1722120087253,10.0,187.2,187.1,16.5164]
[1722120087254,4.2742,187.17,187.1,16.5164]
[1722120087452,4.2739,187.18,187.1,16.5164]
[1722120090666,10.0,187.2,187.1,16.5164]
[1722120090667,35.13,187.2,187.1,16.5164]
[1722120090864,45.34,187.19,187.1,16.5164]
[1722120092273,4.2744,187.16,187.1,16.5164]
[1722120092475,4.2742,187.17,187.1,16.5164]
[1722120092776,4.2739,187.18,187.1,16.5164]
[1722120099668,4.2745,187.16,187.1,16.5164]
[1722120101169,4.2746,187.15,187.1,16.5164]
[1722120102469,45.0,187.19,187.1,16.5164]
[1722120103405,4.2746,187.16,187.1,16.5164]
[1722120104468,55.6843,187.19,187.1,16.5164]
[1722120104666,4.2749,187.14,187.1,16.5164]
[1722120105400,4.2746,187.15,187.1,16.5164]
[1722120107198,4.2749,187.14,187.1,16.5164]
[1722120108475,4.2751,187.13,187.1,16.5164]
[1722120111478,4.2749,187.14,187.1,16.5164]
[1722120112992,10.6843,187.19,187.1,16.5164]
[1722120113297,4.2747,187.15,187.1,16.5164]
[1722120113602,10.6843,187.19,187.1,16.5164]
[1722120114181,4.2752,187.13,187.1,16.5164]
[1722120118300,4.2749,187.14,187.1,16.5164]
[1722120118491,10.6843,187.19,187.1,16.5164]
[1722120118714,45.17,187.18,187.1,16.5164]
[1722120119327,4.2747,187.15,187.1,16.5164]
[1722120119699,45.17,187.18,187.1,16.5164]
[1722120120023,4.2751,187.13,187.1,16.5164]
[1722120123854,4.2771,187.04,187.03,15.787]
[1722120125148,10.6924,187.05,186.98,6.2499]
[1722120125440,4.2778,187.01,186.97,15.787]
[1722120127439,4.2775,187.03,186.97,15.787]
[1722120127640,45.0,187.02,186.97,15.787]
[1722120128449,4.2775,187.03,186.97,15.787]
[1722120129532,4.2771,187.04,186.97,15.787]
[1722120132121,27.28174953,187.08,186.97,15.787]
[1722120132122,4.2774,187.03,186.97,15.787]
[1722120132954,4.2771,187.04,186.97,15.787]
[1722120133553,4.2771,187.04,186.98,1.06948292]
[1722120134668,4.2769,187.05,186.97,15.787]
[1722120134958,25.13,187.08,186.99,15.5601]
[1722120134959,4.2762,187.08,186.99,15.5601]
[1722120136546,4.276,187.09,186.99,15.5601]
[1722120136954,4.2762,187.08,186.99,15.5601]
[1722120137156,10.6857,187.17,186.99,16.62921628]
[1722120137345,4.2755,187.11,187.01,15.5601]
[1722120137646,4.2758,187.1,187.02,20.0]
[1722120138535,25.13,187.09,186.98,15.5601]
[1722120138738,25.13,187.03,186.98,15.5601]
[1722120139046,4.2783,186.99,186.98,15.5601]
[1722120141754,3.7783,186.99,186.98,15.5601]
[1722120143246,4.2785,186.98,186.93,15.5601]
[1722120143967,4.2783,186.99,186.93,15.5601]
[1722120145655,4.2785,186.98,186.93,15.5601]
[1722120147378,4.2778,187.01,186.93,15.5601]
[1722120148361,4.278,187.0,186.93,15.5601]
[1722120151294,4.2805,186.9,186.87,15.5601]
[1722120151584,4.2808,186.88,186.87,15.5601]
[1722120152590,4.2806,186.89,186.87,15.5601]
[1722120153474,35.8294,186.93,186.87,15.5601]
[1722120153778,45.17,186.92,186.87,15.5601]
[1722120154481,45.0,186.92,186.87,15.5601]
[1722120154781,25.13,186.96,186.87,15.5601]
[1722120154995,10.6972,186.97,186.87,15.5601]
[1722120154996,25.13,186.93,186.87,15.5601]
[1722120155205,45.34,186.92,186.87,15.5601]
[1722120155776,4.2803,186.9,186.87,15.5601]
[1722120155975,4.2807,186.89,186.87,15.5601]
[1722120156269,45.34,186.92,186.82,16.1545]
[1722120156467,25.13,186.9,186.82,16.1545]
[1722120156670,35.8309,186.9,186.82,16.1545]
[1722120156869,4.2819,186.83,186.82,16.1545]
[1722120157683,25.13,186.87,186.82,16.1545]
[1722120157684,4.2816,186.85,186.82,16.1545]
[1722120157988,45.34,186.89,186.82,16.1545]
[1722120158186,25.13,186.86,186.72,16.1545]
[1722120158378,45.34,186.85,186.72,16.1545]
[1722120158574,25.13,186.83,186.72,16.1545]
[1722120158777,4.2829,186.79,186.72,16.1545]
[1722120159091,4.2826,186.8,186.72,16.1545]
[1722120159690,4.2828,186.79,186.73,20.0]
[1722120160270,4.2826,186.81,186.73,20.0]
[1722120160482,25.13,186.86,186.73,20.0]
[1722120160683,0.34,186.85,186.73,20.0]
[1722120160964,4.2822,186.82,186.73,20.0]
[1722120161376,45.34,186.85,186.73,20.0]
[1722120161377,4.2818,186.84,186.73,20.0]
[1722120161582,25.13,186.89,186.74,22.4282]
[1722120161784,25.13,186.89,186.75,36.3245]
[1722120161982,4.2811,186.87,186.75,36.3245]
[1722120162789,45.0,186.86,186.75,36.3245]
[1722120162987,4.2808,186.88,186.75,36.3245]
[1722120162988,45.0,186.87,186.75,36.3245]
[1722120163579,49.281,186.87,186.75,36.3245]
[1722120165195,45.0,186.87,186.75,36.3245]
[1722120165396,45.0,186.88,186.75,36.3245]
[1722120166398,4.2806,186.89,186.77,16.1545]
[1722120166588,4.2806,186.89,186.78,20.0]
[1722120167517,4.2806,186.89,186.66,16.1545]
[1722120167518,25.13,186.79,186.66,16.1545]
[1722120167875,4.2835,186.77,186.66,16.1545]
[1722120168279,45.0,186.76,186.66,16.1545]
[1722120168478,45.0,186.78,186.66,16.1545]
[1722120168799,45.0,186.78,186.67,20.0]
[1722120169878,45.0,186.78,186.67,21.07113894]
[1722120170193,25.13,186.82,186.69,6.2737]
[1722120170194,4.2824,186.81,186.69,6.2737]
[1722120170401,4.2824,186.81,186.7,20.0]
[1722120170591,4.2827,186.8,186.7,20.0]
[1722120171983,4.2829,186.79,186.7,20.0]
[1722120175011,4.2832,186.78,186.7,20.0]
[1722120175183,45.0,186.77,186.7,20.0]
[1722120175695,45.0,186.78,186.7,20.0]
[1722120176197,49.2831,186.78,186.7,20.0]
[1722120176395,45.0,186.78,186.7,20.0]
[1722120176782,25.13,186.85,186.7,20.0]
[1722120177110,4.2822,186.82,186.71,15.8421]
[1722120177285,4.2822,186.82,186.72,20.0]
[1722120177598,4.282,186.83,186.72,20.0]
[1722120177798,4.2822,186.82,186.72,20.0]
[1722120178382,4.2819,186.84,186.72,20.0]
[1722120178584,4.2819,186.83,186.72,20.0]
[1722120179294,4.2822,186.82,186.72,20.0]
[1722120180287,25.13,186.85,186.72,20.0]
[1722120180595,4.2817,186.84,186.73,15.8421]
[1722120180902,4.2813,186.86,186.75,6.3077]
[1722120181087,4.2815,186.85,186.76,20.0]
[1722120181284,4.2818,186.84,186.76,20.0]
[1722120182607,4.2834,186.77,186.66,1.07061918]
[1722120182908,70.47,186.76,186.59,15.8421]
[1722120183203,10.7101,186.74,186.59,15.8421]
[1722120183410,45.34,186.73,186.59,15.8421]
[1722120183792,4.2853,186.69,186.59,15.8421]
[1722120184187,70.47,186.73,186.59,15.8421]
[1722120184610,4.2856,186.67,186.59,15.8421]
[1722120185113,70.47,186.73,186.59,15.8421]
[1722120185315,4.2847,186.71,186.59,16.9136904]
[1722120185486,45.0,186.73,186.6,6.3077]
[1722120185685,4.2847,186.71,186.61,15.8421]
[1722120186207,4.2852,186.69,186.61,15.8421]
[1722120186512,45.0,186.73,186.62,20.0]
[1722120186695,45.0,186.74,186.62,20.0]
[1722120186895,4.2847,186.72,186.62,20.0]
[1722120187117,45.0,186.71,186.62,20.0]
[1722120187917,4.2843,186.73,186.62,20.0]
[1722120188405,45.0,186.72,186.62,20.0]
[1722120188808,49.2845,186.72,186.62,20.0]
[1722120189316,4.2841,186.74,186.62,20.0]
[1722120189526,35.8375,186.79,186.64,6.3077]
[1722120189818,4.2835,186.76,186.65,35.8421]
[1722120190014,4.2833,186.77,186.65,35.8421]
[1722120190992,4.2833,186.77,186.65,36.913217]
[1722120191809,45.0,186.76,186.65,36.913217]
[1722120192005,4.2833,186.77,186.65,36.913217]
[1722120192309,4.2831,186.78,186.66,61.4438]
[1722120192513,4.2831,186.78,186.67,20.0]
[1722120192816,4.2831,186.78,186.67,21.07097082]
[1722120195419,25.13,186.82,186.68,23.51137078]
[1722120195619,4.2824,186.81,186.7,16.1038]
[1722120195802,4.2824,186.81,186.72,16.1038]
[1722120195998,4.2829,186.79,186.73,20.0]
[1722120196516,4.2826,186.8,186.73,20.0]
[1722120196911,4.2829,186.79,186.73,20.0]
[1722120197618,4.2826,186.8,186.73,20.0]
[1722120204808,4.2836,186.76,186.72,16.1038]
[1722120205011,4.2839,186.75,186.72,16.1038]
[1722120207413,4.2835,186.77,186.72,16.1038]
[1722120207613,45.0,186.76,186.72,16.1038]
[1722120207811,49.2835,186.76,186.72,16.1038]
[1722120210919,4.2833,186.77,186.72,16.1038]
[1722120211117,4.283,186.79,186.72,16.1038]
[1722120211633,10.7067,186.8,186.72,16.1038]